bitfinex/quotes_ETHUSD_20251201
["timestamp","ask_amount","ask_price","bid_price","bid_amount"]
[1764618470573,0.002,2738.9,2738.7,0.36224159]
[1764618471088,0.002,2738.9,2738.8,0.09979107]
[1764618472150,0.002,2738.9,2738.6,0.001]
[1764618474076,1.09745026,2738.9,2738.6,0.001]
[1764618474595,1.87609912,2738.9,2738.6,0.001]
[1764618474796,1.09745026,2738.9,2738.6,0.001]
[1764618475260,0.77867962,2738.8,2738.6,0.001]
[1764618475460,4.43004705,2738.7,2738.6,0.001]
[1764618475660,5.347922,2738.7,2738.6,0.001]
[1764618476598,5.34763157,2738.7,2738.6,0.001]
[1764618477494,4.56924238,2738.7,2738.6,0.001]
[1764618477798,1.09745026,2738.9,2738.6,0.001]
[1764618477799,3.65315841,2738.9,2738.6,0.001]
[1764618477976,3.65315841,2738.9,2738.8,0.09979107]
[1764618480290,0.002,2738.9,2738.8,0.09979107]
[1764618481469,0.002,2738.9,2738.7,0.36224159]
[1764618481870,0.002,2738.9,2738.6,0.001]
[1764618481871,0.002,2738.9,2738.8,0.09979107]
[1764618482703,0.002,2738.9,2738.6,0.001]
[1764618482704,0.002,2738.9,2738.6,0.36324159]
[1764618483789,0.002,2738.9,2738.8,0.36224159]
[1764618485315,0.002,2738.9,2738.6,0.001]
[1764618486466,0.002,2738.9,2738.7,0.09979107]
[1764618487093,0.80495291,2738.9,2738.6,0.001]
[1764618488169,0.002,2738.9,2738.8,0.19958214]
[1764618488791,0.002,2738.9,2738.6,0.001]
[1764618489402,0.002,2738.9,2738.7,0.09979107]
[1764618489970,0.002,2738.9,2738.6,0.001]
[1764618490166,0.80495291,2738.9,2738.6,0.001]
[1764618490400,3.65123411,2738.8,2738.6,0.001]
[1764618490600,7.30246822,2738.8,2738.6,0.001]
[1764618491098,0.77824517,2738.7,2738.6,0.001]
[1764618492469,4.4296126,2738.7,2738.6,0.001]
[1764618492697,6.04378667,2738.7,2738.6,0.001]
[1764618492997,7.59488658,2738.7,2738.6,0.001]
[1764618493574,6.62478667,2738.7,2738.6,0.001]
[1764618493769,7.59488658,2738.7,2738.6,0.001]
[1764618494006,6.62478667,2738.7,2738.6,0.001]
[1764618494174,7.59488658,2738.7,2738.6,0.001]
[1764618494370,7.03029067,2738.7,2738.6,0.001]
[1764618494598,8.00039058,2738.7,2738.6,0.001]
[1764618494800,7.03029067,2738.7,2738.6,0.001]
[1764618495102,7.01388658,2738.7,2738.6,0.001]
[1764618495302,6.62478667,2738.7,2738.6,0.001]
[1764618495710,6.04378667,2738.7,2738.6,0.001]
[1764618495927,0.77824517,2738.7,2738.6,0.20058214]
[1764618496221,0.77824517,2738.8,2738.7,0.36224159]
[1764618497620,0.002,2738.9,2738.6,7.30391845]
[1764618497931,0.002,2738.9,2738.8,0.36224159]
[1764618498092,4.43188578,2738.9,2738.8,0.36224159]
[1764618498292,0.002,2738.9,2738.8,0.36224159]
[1764618501224,0.78095512,2738.9,2738.6,0.001]
[1764618501524,0.002,2738.9,2738.6,0.001]
[1764618501728,0.77895277,2738.8,2738.6,0.001]
[1764618501930,0.002,2738.9,2738.6,0.001]
[1764618502130,0.77895101,2738.8,2738.6,0.001]
[1764618502331,0.002,2738.9,2738.6,0.001]
[1764618502531,4.43041671,2738.8,2738.6,0.001]
[1764618502832,3.65134522,2738.8,2738.6,0.001]
[1764618503029,3.65319176,2738.9,2738.6,0.001]
[1764618503203,3.65319176,2738.9,2738.7,0.09979107]
[1764618503405,7.30438352,2738.9,2738.6,0.001]
[1764618503931,3.65319176,2738.9,2738.6,0.001]
[1764618504920,0.002,2738.9,2738.6,0.001]
[1764618505646,0.002,2738.9,2738.6,0.36324159]
[1764618506744,0.002,2738.9,2738.8,0.09979107]
[1764618507435,0.002,2738.9,2738.8,0.36224159]
[1764618509117,0.002,2738.9,2738.8,4.0134757]
[1764618510340,0.002,2738.9,2738.8,0.36224159]
[1764618510541,0.002,2738.9,2738.7,3.75115591]
[1764618510743,0.002,2738.9,2738.8,0.93841482]
[1764618511148,0.002,2738.9,2738.8,4.58964893]
[1764618514823,0.002,2738.9,2738.8,0.93841482]
[1764618515019,0.002,2738.9,2738.8,0.36224159]
[1764618515351,0.002,2738.9,2738.8,4.0134757]
[1764618515652,0.002,2738.9,2738.6,0.98360046]
[1764618515653,0.002,2738.9,2738.6,0.10079107]
[1764618516040,0.77947192,2738.9,2738.6,0.10079107]
[1764618516240,0.002,2738.9,2738.6,0.10079107]
[1764618516426,0.77747192,2738.8,2738.6,0.10079107]
[1764618517262,0.002,2738.9,2738.8,0.09979107]
[1764618518325,0.73238297,2738.9,2738.6,0.001]
[1764618518550,0.77960292,2738.9,2738.6,0.001]
[1764618518988,0.002,2738.9,2738.8,0.09979107]
[1764618525759,0.002,2738.9,2738.6,4.01471812]
[1764618525991,0.002,2738.9,2738.7,0.36224159]
[1764618526438,0.002,2738.9,2738.6,0.36324159]
[1764618526727,1.50924451,2738.8,2738.6,0.001]
[1764618526883,0.77884939,2738.7,2738.6,0.001]
[1764618527699,4.43021682,2738.7,2738.6,0.001]
[1764618528922,15.61764722,2738.7,2738.6,0.001]
[1764618529139,15.98119736,2738.7,2738.6,0.001]
[1764618529318,18.01768008,2738.7,2738.6,0.001]
[1764618531409,19.96015269,2738.7,2738.6,0.001]
[1764618532887,19.59660255,2738.7,2738.6,0.001]
[1764618533087,19.96015269,2738.7,2738.6,0.001]
[1764618533312,18.01768008,2738.7,2738.6,0.001]
[1764618533517,8.17879765,2738.7,2738.6,0.001]
[1764618534414,9.14929255,2738.7,2738.6,0.001]
[1764618535038,7.19229365,2738.7,2738.6,0.001]
[1764618535334,0.77884939,2738.7,2738.6,0.001]
[1764618535482,3.65123411,2738.8,2738.6,0.001]
[1764618536114,7.30247284,2738.8,2738.6,0.001]
[1764618537632,0.77610994,2738.7,2738.6,0.001]
[1764618537802,2.36786233,2738.7,2738.6,0.001]
[1764618538595,7.08942876,2738.7,2738.6,0.001]
[1764618539102,16.97026505,2738.7,2738.6,0.001]
[1764618540000,16.87056095,2738.7,2738.6,0.001]
[1764618540615,16.26361619,2738.7,2738.6,0.001]
[1764618540818,17.55782015,2738.7,2738.6,0.001]
[1764618541234,17.19427001,2738.7,2738.6,0.001]
[1764618541745,7.71893772,2738.7,2738.6,0.001]
[1764618541944,6.7882839,2738.7,2738.6,0.001]
[1764618542609,6.78820575,2738.7,2738.6,0.001]
[1764618542810,6.79020575,2738.7,2738.6,0.001]
[1764618543205,13.24020575,2738.7,2738.6,0.001]
[1764618543858,14.53365684,2738.7,2738.6,0.001]
[1764618544768,15.11465684,2738.7,2738.6,0.001]
[1764618545823,14.7511067,2738.7,2738.6,0.001]
[1764618547334,13.82120575,2738.7,2738.6,0.001]
[1764618551178,13.45765561,2738.7,2738.6,0.001]
[1764618551543,15.76367836,2738.7,2738.6,0.001]
[1764618552269,13.82120575,2738.7,2738.6,0.001]
[1764618554254,0.405504,2738.6,2738.5,0.001]
[1764618554576,16.22889579,2738.6,2738.5,0.001]
[1764618555374,14.28394346,2738.6,2738.5,0.001]
[1764618555577,13.19479921,2738.6,2738.5,0.001]
[1764618555740,4.61164669,2738.6,2738.5,0.001]
[1764618556093,0.77603179,2738.6,2738.5,0.001]
[1764618556291,5.15312666,2738.6,2738.5,0.001]
[1764618557579,6.12748536,2738.6,2738.5,0.001]
[1764618558695,5.15312666,2738.6,2738.5,0.001]
[1764618559381,7.88033904,2738.6,2738.5,0.001]
[1764618559589,7.88052425,2738.6,2738.5,0.001]
[1764618559888,0.77603179,2738.6,2738.5,0.001]
[1764618560183,4.42753255,2738.6,2738.5,0.001]
[1764618561698,0.77603179,2738.6,2738.5,0.001]
[1764618561989,4.42753255,2738.6,2738.5,0.001]
[1764618562176,0.77603179,2738.6,2738.5,0.001]
[1764618562361,4.42753255,2738.6,2738.5,0.001]
[1764618562776,0.77603179,2738.6,2738.5,0.001]
[1764618563261,0.002,2738.7,2738.5,0.001]
[1764618563462,0.002,2738.7,2738.6,0.46516781]
[1764618566694,0.002,2738.7,2738.6,0.09979107]
[1764618567917,0.002,2738.7,2738.6,3.75129183]
[1764618568201,0.002,2738.7,2738.6,4.47688594]
[1764618568789,0.002,2738.7,2738.6,4.88238994]
[1764618569474,0.002,2738.7,2738.6,14.35772223]
[1764618569670,0.002,2738.7,2738.6,16.158856]
[1764618574421,0.002,2738.7,2738.6,6.68352371]
[1764618575723,0.002,2738.7,2738.6,7.26452371]
[1764618577812,0.002,2738.7,2738.6,6.5389296]
[1764618578123,0.002,2738.7,2738.6,5.05788594]
[1764618578423,0.002,2738.7,2738.6,5.46338994]
[1764618578829,0.002,2738.7,2738.6,4.33229183]
[1764618579332,0.002,2738.7,2738.6,5.05788594]
[1764618579533,0.002,2738.7,2738.6,4.33229183]
[1764618579840,0.002,2738.7,2738.6,0.68079107]
[1764618580224,0.002,2738.7,2738.6,4.33229183]
[1764618580549,0.002,2738.7,2738.6,4.76572101]
[1764618583445,0.002,2738.7,2738.6,5.89681912]
[1764618585654,1e-08,2739.0,2738.9,0.76774559]
[1764618586171,1e-08,2739.0,2738.9,5.1444405]
[1764618586587,1e-08,2739.0,2738.9,14.74939592]
[1764618586748,1e-08,2739.0,2738.9,16.58945726]
[1764618588649,1e-08,2739.0,2738.9,16.73570981]
[1764618589247,1e-08,2739.3,2739.2,0.60508614]
[1764618589486,1e-08,2739.3,2739.2,1.18608614]
[1764618590376,1e-08,2739.3,2739.2,5.56238118]
[1764618590576,1e-08,2739.3,2739.2,6.32379617]
[1764618590778,0.002,2740.7,2739.3,1.13109811]
[1764618590981,0.002,2740.7,2739.4,11.09829512]
[1764618591788,0.002,2740.7,2739.4,1.4933397]
[1764618591949,0.002,2740.7,2739.4,2.0743397]
[1764618592280,0.002,2740.7,2739.4,2.50705535]
[1764618592481,0.002,2740.7,2739.4,5.75198575]
[1764618592785,0.002,2740.7,2739.4,6.33298575]
[1764618593883,0.002,2740.7,2739.4,6.73848975]
[1764618597777,0.002,2739.8,2739.4,6.73848975]
[1764618600997,1e-08,2739.8,2739.7,0.60508614]
[1764618601528,1e-08,2739.8,2739.7,0.75129592]
[1764618601689,1e-08,2739.8,2739.7,1.33229592]
[1764618601893,1e-08,2739.8,2739.7,1.53808492]
[1764618602715,1e-08,2739.8,2739.7,5.9137137]
[1764618602924,1e-08,2740.4,2740.3,1.13109811]
[1764618603087,1e-08,2740.4,2740.3,1.81088918]
[1764618603517,1e-08,2740.4,2740.3,1.95705141]
[1764618603719,1e-08,2740.4,2740.3,2.5776081]
[1764618604814,1e-08,2740.4,2740.3,6.22684358]
[1764618605935,1e-08,2741.0,2740.9,0.50529507]
[1764618606238,1e-08,2741.0,2740.9,1.08529507]
[1764618606733,0.002,2741.9,2741.8,4.05274304]
[1764618606734,1e-08,2741.9,2741.8,4.05274304]
[1764618606923,1e-08,2741.9,2741.8,5.55791929]
[1764618607310,1e-08,2741.9,2741.8,5.70402013]
[1764618608004,1e-08,2741.9,2741.8,5.55791929]
[1764618608201,1e-08,2741.9,2741.8,6.47844726]
[1764618610818,1e-08,2741.9,2741.8,6.64110671]
[1764618611224,1e-08,2741.9,2741.8,5.65560271]
[1764618611538,1e-08,2741.9,2741.8,4.58948063]
[1764618611712,1e-08,2741.9,2741.8,5.31507474]
[1764618612462,1e-08,2741.9,2741.8,5.72057874]
[1764618616590,1e-08,2741.9,2741.8,4.73507474]
[1764618616752,1e-08,2741.9,2741.8,4.58948063]
[1764618617079,1e-08,2741.9,2741.8,6.13875874]
[1764618617972,1e-08,2741.9,2741.8,6.54426274]
[1764618618280,1e-08,2741.9,2741.8,5.31507474]
[1764618618659,1e-08,2741.9,2741.8,5.72057874]
[1764618620245,1e-08,2741.9,2741.8,4.00948063]
[1764618620444,1e-08,2741.9,2741.8,0.36224159]
[1764618621154,1e-08,2741.9,2741.8,4.00948063]
[1764618621781,1e-08,2741.9,2741.6,0.09979107]
[1764618621941,1e-08,2741.9,2741.2,0.09979107]
[1764618622146,0.77485409,2741.9,2741.3,0.29937321]
[1764618622347,0.96049554,2741.8,2741.3,0.29937321]
[1764618622979,0.96049554,2741.8,2741.6,0.09979107]
[1764618623150,1e-08,2741.9,2741.6,0.09979107]
[1764618623683,8.06897525,2741.9,2741.5,0.09979107]
[1764618623846,7.29421205,2741.9,2741.4,0.09979107]
[1764618624381,1e-08,2741.9,2741.4,0.09979107]
[1764618624585,1e-08,2741.9,2741.2,3.64803735]
[1764618624586,1e-08,2741.9,2741.5,0.58]
[1764618624887,1e-08,2741.9,2741.6,0.09979107]
[1764618625688,3.64723904,2741.8,2741.3,0.58]
[1764618626216,7.29447808,2741.8,2741.3,0.58]
[1764618626365,3.64723904,2741.8,2741.3,0.58]
[1764618626691,3.64723904,2741.8,2741.3,0.94224159]
[1764618628085,0.77637957,2741.7,2741.3,0.94224159]
[1764618628289,0.8800254,2741.7,2741.3,0.94224159]
[1764618629288,3.64723904,2741.8,2741.3,0.94224159]
[1764618629497,0.77735126,2741.7,2741.3,0.94224159]
[1764618629654,7.29447808,2741.8,2741.3,0.94224159]
[1764618629988,4.42479027,2741.7,2741.3,0.94224159]
[1764618630198,3.64742975,2741.7,2741.3,0.94224159]
[1764618630382,3.64730475,2741.8,2741.3,4.59014462]
[1764618630697,0.77735121,2741.7,2741.3,0.94224159]
[1764618630990,1e-08,2741.9,2741.6,0.09979107]
[1764618631158,1e-08,2741.9,2741.7,0.19958214]
[1764618631415,0.7775103,2741.8,2741.7,0.19958214]
[1764618631640,1e-08,2741.9,2741.8,0.19958214]
[1764618631806,1e-08,2741.9,2741.8,3.84682118]
[1764618632145,1e-08,2741.9,2741.8,4.65423867]
[1764618633123,1e-08,2741.9,2741.8,5.78533678]
[1764618635146,1e-08,2741.9,2741.8,5.93144189]
[1764618635445,1e-08,2741.9,2741.8,5.78533678]
[1764618639429,1e-08,2741.9,2741.8,5.37983278]
[1764618639635,1e-08,2741.9,2741.8,4.57241529]
[1764618639847,1e-08,2741.9,2741.8,5.15241529]
[1764618640847,1e-08,2741.9,2741.8,0.77958214]
[1764618641040,1e-08,2741.9,2741.8,4.42682118]
[1764618642020,1e-08,2741.9,2741.8,4.83232518]
[1764618642225,1e-08,2741.9,2741.8,5.68028404]
[1764618643451,1e-08,2741.9,2741.8,4.69478004]
[1764618643630,1e-08,2741.9,2741.8,5.27478004]
[1764618646054,1e-08,2741.9,2741.8,4.42682118]
[1764618646286,1e-08,2741.9,2741.8,0.19958214]
[1764618646458,1e-08,2741.9,2741.8,0.77958214]
[1764618648366,1e-08,2741.9,2741.8,4.42682118]
[1764618649257,1e-08,2741.9,2741.8,5.15341529]
[1764618649461,1e-08,2741.9,2741.8,6.03349243]
[1764618653875,1e-08,2741.9,2741.8,6.43899643]
[1764618659784,1e-08,2741.9,2741.8,15.8919907]
[1764618660087,0.002,2743.2,2741.9,1.13109811]
[1764618660247,0.002,2743.2,2743.1,0.36224159]
[1764618660696,0.002,2743.2,2743.1,0.58]
[1764618661334,0.002,2743.2,2743.1,0.94224159]
[1764618662495,0.78418425,2743.2,2742.8,0.19958214]
[1764618662682,1.58965163,2743.1,2742.7,0.36224159]
[1764618662891,0.78218425,2743.0,2742.7,0.36224159]
[1764618663183,0.80746738,2743.1,2742.6,0.67979107]
[1764618663383,0.78200114,2743.0,2742.6,0.94224159]
[1764618663582,7.2912869,2743.0,2742.6,0.58]
[1764618663758,1.59154974,2742.9,2742.4,0.19958214]
[1764618664073,0.78167431,2742.8,2742.2,0.58]
[1764618664390,0.78167431,2742.7,2742.5,0.36224159]
[1764618664689,0.96985306,2743.0,2742.6,0.09979107]
[1764618664894,0.96985306,2743.0,2742.2,0.58]
[1764618664895,0.78157007,2742.9,2742.0,10.94084644]
[1764618665098,4.61732689,2743.2,2742.8,0.09979107]
[1764618665297,0.78165889,2743.1,2742.8,0.09979107]
[1764618665598,0.78165889,2743.0,2742.8,0.09979107]
[1764618665781,3.64747383,2743.2,2742.8,0.09979107]
[1764618665986,0.78166553,2743.1,2742.8,0.09979107]
[1764618666177,0.78166553,2743.0,2742.8,0.09979107]
[1764618666497,0.78167121,2742.9,2742.6,0.94224159]
[1764618666679,8.19175571,2743.2,2742.6,0.94224159]
[1764618666873,1.69777939,2743.1,2742.6,0.94224159]
[1764618667080,0.78161851,2743.0,2742.6,0.58]
[1764618667279,0.78161851,2742.9,2742.6,0.58]
[1764618667480,0.91616088,2743.1,2742.6,0.58]
[1764618667697,0.77984103,2743.0,2742.6,0.58]
[1764618667898,0.002,2743.2,2742.6,4.22617516]
[1764618668122,0.002,2743.2,2743.1,0.09979107]
[1764618668265,0.78182042,2743.2,2743.1,0.09979107]
[1764618668470,4.86990559,2743.2,2742.6,0.67979107]
[1764618668697,0.77982042,2743.1,2742.7,0.36224159]
[1764618668973,0.44470751,2743.2,2742.6,4.22616074]
[1764618669167,0.77975563,2743.1,2743.0,0.09979107]
[1764618669372,0.002,2743.2,2743.1,0.09979107]
[1764618669872,0.002,2743.2,2743.1,3.74530162]
[1764618670199,0.002,2743.2,2743.1,5.26798847]
[1764618674398,0.002,2743.2,2743.1,3.74530162]
[1764618675405,0.002,2743.2,2743.1,0.09979107]
[1764618675600,0.002,2743.2,2743.0,0.58]
[1764618675801,0.002,2743.2,2743.0,0.94224159]
[1764618676181,0.002,2743.2,2743.0,0.58]
[1764618676381,0.002,2743.2,2742.4,0.36224159]
[1764618676580,0.94749943,2743.2,2742.6,0.19958214]
[1764618676986,0.94749943,2743.2,2742.7,0.19958214]
[1764618677892,0.94749943,2743.2,2742.5,0.58]
[1764618677893,7.2910211,2743.1,2742.5,0.58]
[1764618678076,0.77714806,2743.0,2742.5,0.58]
[1764618679008,3.64551055,2743.1,2742.5,0.67979107]
[1764618679217,0.459301,2743.0,2742.5,0.58]
[1764618679514,1.23678782,2743.0,2742.5,0.58]
[1764618680012,7.29155272,2742.9,2742.5,0.58]
[1764618680199,7.29155272,2742.9,2741.8,0.001]
[1764618680374,9.45299427,2742.2,2741.8,0.10079107]
[1764618680578,0.77742825,2742.1,2741.8,0.001]
[1764618681178,9.45299427,2742.2,2741.8,0.001]
[1764618681510,0.77703864,2742.1,2741.8,0.001]
[1764618682014,3.64697301,2742.0,2741.8,0.001]
[1764618683316,3.64697301,2742.0,2741.9,0.001]
[1764618684115,7.29370834,2742.1,2741.9,0.001]
[1764618684318,1.13109811,2742.0,2741.9,0.001]
[1764618684525,0.405504,2741.9,2741.5,0.001]
[1764618684704,10.58409238,2741.6,2741.5,0.001]
[1764618684910,11.36048716,2741.6,2741.5,0.001]
[1764618686011,15.00799226,2741.6,2741.5,0.001]
[1764618686316,14.23159748,2741.6,2741.5,0.001]
[1764618686619,6.19557072,2741.6,2741.5,0.001]
[1764618686794,4.37309921,2741.6,2741.5,0.001]
[1764618686993,5.02281578,2742.1,2741.5,0.001]
[1764618686994,2.0706729,2742.2,2741.5,0.001]
[1764618687207,0.7748744,2742.1,2741.6,0.09979107]
[1764618687381,4.74699175,2742.2,2741.6,0.09979107]
[1764618687589,8.39375751,2742.2,2741.6,0.09979107]
[1764618687794,0.83937575,2742.1,2741.6,0.09979107]
[1764618688021,3.64697301,2742.0,2741.6,0.09979107]
[1764618688820,7.29394602,2742.0,2741.6,0.09979107]
[1764618689022,0.72559411,2741.9,2741.5,0.001]
[1764618689323,2.11195074,2741.8,2741.5,0.001]
[1764618690330,7.29474412,2741.7,2741.5,0.001]
[1764618690825,2.11195074,2741.8,2741.5,0.001]
[1764618691025,3.64719825,2741.9,2741.5,0.001]
[1764618691352,3.64719825,2741.9,2741.5,0.10079107]
[1764618691524,0.83937575,2742.1,2741.5,0.001]
[1764618691525,4.48632279,2742.1,2741.5,0.001]
[1764618691730,4.48632279,2742.1,2741.7,0.09979107]
[1764618692327,8.13326983,2742.1,2741.7,0.09979107]
[1764618693627,1.54246277,2742.8,2741.5,0.001]
[1764618693628,10.99545704,2742.8,2741.5,0.001]
[1764618693932,11.51826684,2742.7,2741.7,0.36224159]
[1764618694131,11.51826684,2742.7,2741.7,3.64737206]
[1764618694132,7.29261622,2742.5,2741.7,3.64737206]
[1764618694310,7.29261622,2742.5,2741.6,4.00962314]
[1764618694506,0.72559411,2742.3,2741.5,0.20058214]
[1764618694828,1.52741514,2742.4,2742.0,0.09979107]
[1764618694993,0.72559411,2742.4,2742.0,0.09979107]
[1764618695423,0.72559411,2742.4,2741.5,3.64857908]
[1764618695633,0.72559411,2742.4,2741.9,0.09979107]
[1764618696339,7.29314808,2742.3,2741.8,0.09979107]
[1764618696628,3.64657404,2742.3,2741.8,0.09979107]
[1764618697628,8.09501798,2742.3,2741.5,0.001]
[1764618697802,8.09501798,2742.3,2741.5,0.20058214]
[1764618698198,11.74159202,2742.3,2741.5,0.20058214]
[1764618698412,0.72559411,2742.2,2741.5,0.20058214]
[1764618699130,1.30559411,2742.2,2741.5,0.001]
[1764618699332,1.30471861,2742.1,2741.5,0.001]
[1764618699498,9.95615083,2741.9,2741.5,0.001]
[1764618699705,0.405504,2742.0,2741.5,0.001]
[1764618699904,0.58,2742.0,2741.5,0.001]
[1764618700303,7.29421204,2741.9,2741.5,0.001]
[1764618700523,0.7874212,2741.8,2741.5,0.001]
[1764618702305,3.64737206,2741.7,2741.5,0.001]
[1764618703101,7.29474412,2741.7,2741.5,0.001]
[1764618703702,3.64737206,2741.7,2741.5,0.001]
[1764618704132,4.43472953,2741.8,2741.5,0.001]
[1764618704333,3.64711113,2741.9,2741.5,0.001]
[1764618704716,7.29422226,2741.9,2741.5,0.001]
[1764618704912,3.64711113,2741.9,2741.5,0.001]
[1764618705238,7.29422226,2741.9,2741.5,0.001]
[1764618705442,8.21211635,2741.9,2741.5,0.001]
[1764618707151,1.50258966,2741.8,2741.5,0.001]
[1764618707308,0.77699555,2741.7,2741.5,0.001]
[1764618707514,0.77699555,2741.6,2741.5,0.001]
[1764618707737,0.77699555,2741.7,2741.5,0.001]
[1764618707914,0.77699555,2741.6,2741.5,0.001]
[1764618708431,4.42450065,2741.6,2741.5,0.001]
[1764618712337,0.97038817,2742.1,2741.5,0.581]
[1764618712654,0.002,2742.4,2741.8,0.09979107]
[1764618712952,0.77921554,2742.3,2741.5,7.87620583]
[1764618713115,0.77921554,2742.2,2741.6,0.36224159]
[1764618713311,0.77921554,2742.1,2741.5,7.87620583]
[1764618713546,0.002,2742.4,2741.6,1.14986217]
[1764618713751,0.77905902,2742.3,2741.6,1.14986217]
[1764618713919,0.77905902,2742.2,2741.6,0.78762058]
[1764618714118,0.77905902,2742.1,2741.8,0.36224159]
[1764618714328,8.26527135,2742.4,2741.6,0.36224159]
[1764618714527,1.60552287,2742.3,2741.5,0.581]
[1764618714755,2.47497801,2742.2,2741.5,0.001]
[1764618714954,0.77899573,2742.1,2741.5,0.001]
[1764618715117,0.77899573,2742.0,2741.5,0.001]
[1764618715453,0.77899573,2741.9,2741.5,0.001]
[1764618715635,0.2474978,2742.0,2741.5,0.001]
[1764618715840,0.2474978,2742.0,2741.5,0.36324159]
[1764618715841,0.77909362,2741.9,2741.5,0.36324159]
[1764618716040,0.2474978,2742.0,2741.5,0.36324159]
[1764618716248,0.77909375,2741.9,2741.5,0.36324159]
[1764618716553,0.2474978,2742.0,2741.5,0.36324159]
[1764618716732,4.42643645,2741.9,2741.5,0.36324159]
[1764618716932,3.64711576,2741.9,2741.5,0.36324159]
[1764618718222,0.77888236,2741.8,2741.5,0.001]
[1764618718422,0.77888236,2741.7,2741.5,0.001]
[1764618718618,0.77888236,2741.6,2741.5,0.001]
[1764618719522,5.55748557,2741.6,2741.5,0.001]
[1764618719835,0.5052081,2741.4,2741.3,0.001]
[1764618720048,4.53593051,2741.4,2741.3,0.001]
[1764618720268,2.58968457,2741.4,2741.3,0.001]
[1764618720435,1.13109811,2741.3,2741.0,0.001]
[1764618720637,13.41783742,2741.1,2741.0,0.001]
[1764618720944,4.80165332,2741.1,2741.0,0.001]
[1764618721258,5.73264691,2741.1,2741.0,0.001]
[1764618721641,7.43427886,2741.1,2741.0,0.001]
[1764618721955,16.44711229,2741.1,2741.0,0.001]
[1764618722134,5.15264691,2741.1,2741.0,0.001]
[1764618722456,6.7043657,2741.1,2741.0,0.001]
[1764618722752,7.86924501,2741.1,2741.0,0.001]
[1764618722924,6.8975245,2741.1,2741.0,0.001]
[1764618723125,8.19388519,2741.1,2741.0,0.001]
[1764618723338,6.8975245,2741.1,2741.0,0.001]
[1764618723938,16.89562919,2741.1,2741.0,0.001]
[1764618724133,18.55554002,2741.1,2741.0,0.001]
[1764618724352,16.89562919,2741.1,2741.0,0.001]
[1764618725260,16.49012519,2741.1,2741.0,0.001]
[1764618725957,17.46092707,2741.1,2741.0,0.001]
[1764618726124,16.49012519,2741.1,2741.0,0.001]
[1764618726325,17.46070225,2741.1,2741.0,0.001]
[1764618726854,7.86810156,2741.1,2741.0,0.001]
[1764618728067,7.28810156,2741.1,2741.0,0.001]
[1764618728271,17.46070225,2741.1,2741.0,0.001]
[1764618728570,18.22975639,2741.1,2741.0,0.001]
[1764618731269,16.89562919,2741.1,2741.0,0.001]
[1764618731628,17.86620625,2741.1,2741.0,0.001]
[1764618731823,17.28620625,2741.1,2741.0,0.001]
[1764618732040,17.86620625,2741.1,2741.0,0.001]
[1764618732247,16.89562919,2741.1,2741.0,0.001]
[1764618734364,2.66935406,2741.1,2741.0,0.001]
[1764618734536,0.77888236,2741.1,2741.0,0.001]
[1764618734736,6.45,2741.3,2741.0,0.001]
[1764618734984,0.72559411,2741.2,2741.0,0.001]
[1764618735483,3.64817044,2741.1,2741.0,0.001]
[1764618735959,3.64725136,2741.8,2741.3,0.36224159]
[1764618736132,7.29450272,2741.8,2741.3,0.36224159]
[1764618736457,0.58,2741.9,2741.3,0.36224159]
[1764618736458,0.002,2741.5,2741.3,0.36224159]
[1764618736826,0.002,2741.5,2741.4,0.09979107]
[1764618737025,0.002,2741.5,2741.0,0.001]
[1764618737026,0.002,2741.5,2741.3,0.09979107]
[1764618737228,0.002,2741.5,2741.0,0.001]
[1764618737229,0.002,2741.5,2741.2,0.09979107]
[1764618737664,0.002,2741.5,2741.2,3.74776132]
[1764618738037,9.59460069,2741.5,2741.0,0.001]
[1764618738238,1.01746007,2741.4,2741.0,0.001]
[1764618738969,9.59460069,2741.5,2741.0,0.001]
[1764618738970,0.002,2741.5,2741.0,0.001]
[1764618739267,0.002,2741.5,2741.0,3.84888412]
[1764618739671,0.002,2741.5,2741.2,0.36224159]
[1764618739967,0.002,2741.5,2741.0,3.64930198]
[1764618739968,0.002,2741.5,2741.0,4.01154357]
[1764618740173,0.002,2741.5,2741.0,4.77763858]
[1764618740666,0.002,2741.5,2741.2,0.36224159]
[1764618741768,0.002,2741.5,2741.0,4.41539699]
[1764618741769,0.002,2741.5,2741.1,3.64805727]
[1764618741963,0.002,2741.5,2741.2,0.36224159]
[1764618742168,0.002,2741.5,2741.0,0.001]
[1764618742465,0.36495108,2741.4,2741.0,0.001]
[1764618743771,0.002,2741.5,2741.0,0.001]
[1764618744271,0.002,2741.5,2741.4,0.36224159]
[1764618746763,0.002,2741.5,2741.3,0.36224159]
[1764618748246,0.002,2741.5,2741.4,0.19958214]
[1764618748640,0.002,2741.5,2741.4,3.84735335]
[1764618748834,0.002,2741.5,2741.4,4.59687734]
[1764618749140,0.002,2741.5,2741.4,5.17687734]
[1764618749540,0.002,2741.5,2741.4,5.90247145]
[1764618756414,0.002,2741.5,2741.2,0.19958214]
[1764618756585,0.002,2741.5,2741.0,0.001]
[1764618757676,0.002,2741.5,2741.2,0.19958214]
[1764618757858,0.002,2741.5,2741.2,3.64802226]
[1764618758057,0.002,2741.5,2741.3,0.09979107]
[1764618759876,0.002,2741.5,2741.0,0.581]
[1764618760087,0.73167441,2741.5,2741.0,0.581]
[1764618760257,0.73167441,2741.5,2741.0,4.22930188]
[1764618761466,0.73167441,2741.5,2741.0,4.22928494]
[1764618761782,0.73167441,2741.5,2741.0,4.59152653]
[1764618762170,0.73167441,2741.5,2741.0,4.22928494]
[1764618762352,0.43792823,2741.4,2741.0,4.22928494]
[1764618762550,0.43792823,2741.4,2741.0,4.59152653]
[1764618762969,0.43792823,2741.4,2741.0,4.22928494]
[1764618763294,0.43792823,2741.4,2741.0,4.59150476]